fUSD/lending_fUSD_20250212
["ID","MTS","AMOUNT","RATE_DAILY","PERIOD"]
[352877783,1739385034871,-500.0,0.00018799,2]
[352877785,1739385034881,-500.0,0.00018799,2]
[352877787,1739385034891,-500.0,0.00018799,2]
[352877789,1739385034900,-526.82,0.00018799,2]
[352877791,1739385034910,-500.0,0.00018799,2]
[352877793,1739385034920,-629.38,0.00018799,2]
[352877795,1739385034930,-500.0,0.00018799,2]
[352877797,1739385034940,-500.0,0.00018799,2]
[352877798,1739385034949,-500.0,0.00018799,2]
[352877799,1739385034959,-500.0,0.00018799,2]
[352877800,1739385034968,-570.95,0.00018799,2]
[352877801,1739385034978,-500.0,0.00018799,2]
[352877802,1739385034989,-500.0,0.00018799,2]
[352877803,1739385034998,-500.0,0.00018799,2]
[352877804,1739385035008,-500.0,0.00018799,2]
[352877805,1739385035017,-408.03278891,0.00018799,2]
[352877806,1739385035027,-500.0,0.00018799,2]
[352877807,1739385035037,-500.0,0.00018799,2]
[352877808,1739385035047,-500.0,0.00018799,2]
[352877809,1739385035057,-500.0,0.00018799,2]
[352877810,1739385035067,-500.0,0.00018799,2]
[352877811,1739385035076,-425.29279023,0.00018799,2]
[352877812,1739385035086,-500.0,0.00018799,2]
[352877813,1739385035096,-513.85,0.00018799,2]
[352877814,1739385035107,-500.0,0.00018799,2]
[352877815,1739385035118,-500.0,0.00018799,2]
[352877816,1739385035130,-500.0,0.00018799,2]
[352877817,1739385035140,-500.0,0.00018799,2]
[352877818,1739385035150,-500.0,0.00018799,2]
[352877819,1739385035159,-500.0,0.00018799,2]
[352877820,1739385035168,-500.0,0.00018799,2]
[352877821,1739385035177,-500.0,0.00018799,2]
[352877822,1739385035186,-500.0,0.00018799,2]
[352877823,1739385035196,-500.0,0.00018799,2]
[352877824,1739385035205,-500.0,0.00018799,2]
[352877825,1739385035214,-500.0,0.00018799,2]
[352877826,1739385035223,-500.0,0.00018799,2]
[352877827,1739385035233,-500.0,0.00018799,2]
[352877828,1739385035242,-500.0,0.00018799,2]
[352877829,1739385035251,-500.0,0.00018799,2]
[352877830,1739385035261,-500.0,0.00018799,2]
[352877831,1739385035271,-292.87141927,0.00018799,2]
[352877832,1739385035281,-500.0,0.00018799,2]
[352877833,1739385035291,-502.7342233,0.00018799,2]
[352877834,1739385035300,-526.7,0.00018799,2]
[352877835,1739385035310,-500.0,0.00018799,2]
[352877836,1739385035319,-509.77,0.00018799,2]
[352877837,1739385035329,-365.18551087,0.00018799,2]
[352877838,1739385035339,-500.0,0.00018799,2]
[352877839,1739385035349,-500.0,0.00018799,2]
[352877840,1739385035361,-500.0,0.00018799,2]
[352877841,1739385035371,-500.0,0.00018799,2]
[352877842,1739385035381,-500.0,0.00018799,2]
[352877843,1739385035393,-500.0,0.00018799,2]
[352877844,1739385035403,-501.95419027,0.00018799,2]
[352877845,1739385035413,-500.0,0.00018799,2]
[352877846,1739385035423,-500.0,0.00018799,2]
[352877847,1739385035433,-500.0,0.00018799,2]
[352877848,1739385035442,-500.0,0.00018799,2]
[352877849,1739385035452,-500.0,0.00018799,2]
[352877850,1739385035462,-500.0,0.00018799,2]
[352877851,1739385035471,-500.0,0.00018799,2]
[352877852,1739385035481,-500.0,0.00018799,2]
[352877853,1739385035491,-500.0,0.00018799,2]
[352877854,1739385035500,-469.17254791,0.00018799,2]
[352877855,1739385035919,-30.82745209,0.00018799,2]
[352877856,1739385035929,-500.0,0.00018799,2]
[352877857,1739385035939,-500.0,0.00018799,2]
[352877858,1739385035951,-500.0,0.00018799,2]
[352877859,1739385035961,-500.0,0.00018799,2]
[352877860,1739385035971,-164.03712,0.00018799,2]
[352877861,1739385035981,-500.0,0.00018799,2]
[352877862,1739385035991,-500.0,0.00018799,2]
[352877863,1739385036001,-500.0,0.00018799,2]
[352877864,1739385036010,-500.0,0.00018799,2]
[352877865,1739385036034,-500.0,0.00018799,2]
[352877866,1739385036043,-500.0,0.00018799,2]
[352877867,1739385036055,-500.0,0.00018799,2]
[352877868,1739385036070,-500.0,0.00018799,2]
[352877869,1739385036082,-500.0,0.00018799,2]
[352877870,1739385036093,-510.05713909,0.00018799,2]
[352877871,1739385036105,-500.0,0.00018799,2]
[352877872,1739385036117,-500.0,0.00018799,2]
[352877873,1739385036127,-500.0,0.00018799,2]
[352877874,1739385036137,-500.0,0.00018799,2]
[352877875,1739385036148,-500.0,0.00018799,2]
[352877876,1739385036158,-500.0,0.00018799,2]
[352877877,1739385036167,-500.0,0.00018799,2]
[352877878,1739385036177,-593.95000434,0.00018799,2]
[352877879,1739385036187,-639.99886059,0.00018799,2]
[352877880,1739385036197,-500.0,0.00018799,2]
[352877881,1739385036207,-500.0,0.00018799,2]
[352877882,1739385036218,-500.0,0.00018799,2]
[352877883,1739385036230,-500.0,0.00018799,2]
[352877884,1739385036240,-500.0,0.00018799,2]
[352877885,1739385036250,-500.0,0.00018799,2]
[352877886,1739385036261,-500.0,0.00018799,2]
[352877887,1739385036271,-571.04,0.00018799,2]
[352877888,1739385036283,-500.0,0.00018799,2]
[352877889,1739385036293,-625.39,0.00018799,2]
[352877890,1739385036302,-500.0,0.00018799,2]
[352877891,1739385036312,-570.59,0.00018799,2]
[352877892,1739385036322,-530.12,0.00018799,2]
[352877893,1739385036332,-500.0,0.00018799,2]
[352877894,1739385036342,-500.0,0.00018799,2]
[352877895,1739385036570,-500.0,0.00018799,2]
[352877896,1739385036581,-564.4,0.00018799,2]
[352877897,1739385036592,-500.0,0.00018799,2]
[352877898,1739385036603,-500.0,0.00018799,2]
[352877899,1739385036614,-500.0,0.00018799,2]
[352877900,1739385036623,-500.0,0.00018799,2]
[352877901,1739385036633,-500.0,0.00018799,2]
[352877902,1739385036644,-500.0,0.00018799,2]
[352877903,1739385036654,-592.44,0.00018799,2]
[352877904,1739385036665,-500.0,0.00018799,2]
[352877905,1739385036676,-500.0,0.00018799,2]
[352877906,1739385036686,-500.0,0.00018799,2]
[352877907,1739385036696,-500.0,0.00018799,2]
[352877908,1739385036706,-500.0,0.00018799,2]
[352877909,1739385036716,-500.0,0.00018799,2]
[352877910,1739385036725,-500.0,0.00018799,2]
[352877911,1739385036736,-500.0,0.00018799,2]
[352877912,1739385036747,-500.0,0.00018799,2]
[352877913,1739385036756,-500.0,0.00018799,2]
[352877914,1739385036766,-500.0,0.00018799,2]
[352877915,1739385036776,-173.51423332,0.00018799,2]
[352877916,1739385036786,-500.0,0.00018799,2]
[352877917,1739385036795,-500.0,0.00018799,2]
[352877918,1739385036805,-550.63,0.00018799,2]
[352877919,1739385036814,-500.0,0.00018799,2]
[352877920,1739385036825,-500.0,0.00018799,2]
[352877921,1739385036834,-554.59,0.00018799,2]
[352877922,1739385036844,-500.0,0.00018799,2]
[352877923,1739385036853,-568.83,0.00018799,2]
[352877924,1739385036864,-500.0,0.00018799,2]
[352877925,1739385036873,-500.0,0.00018799,2]
[352877926,1739385036883,-500.0,0.00018799,2]
[352877927,1739385036892,-500.0,0.00018799,2]
[352877928,1739385036902,-500.0,0.00018799,2]
[352877929,1739385036912,-500.0,0.00018799,2]
[352877930,1739385036921,-606.06,0.00018799,2]
[352877931,1739385036931,-500.0,0.00018799,2]
[352877932,1739385036941,-500.0,0.00018799,2]
[352877933,1739385036950,-500.0,0.00018799,2]
[352877934,1739385036960,-500.0,0.00018799,2]
[352877935,1739385036969,-500.0,0.00018799,2]
[352877936,1739385036983,-578.63,0.00018799,2]
[352877937,1739385036994,-500.0,0.00018799,2]
[352877938,1739385037004,-500.0,0.00018799,2]
[352877939,1739385037014,-500.0,0.00018799,2]
[352877940,1739385037024,-554.69,0.00018799,2]
[352877941,1739385037034,-500.0,0.00018799,2]
[352877942,1739385037045,-500.0,0.00018799,2]
[352877943,1739385037057,-500.0,0.00018799,2]
[352877944,1739385037068,-500.0,0.00018799,2]
[352877945,1739385037078,-556.18,0.00018799,2]
[352877946,1739385037087,-607.23,0.00018799,2]
[352877947,1739385037098,-500.0,0.00018799,2]
[352877948,1739385037110,-500.93916354,0.00018799,2]
[352877949,1739385037120,-614.24,0.00018799,2]
[352877950,1739385037131,-500.0,0.00018799,2]
[352877951,1739385037142,-500.0,0.00018799,2]
[352877952,1739385037152,-500.0,0.00018799,2]
[352877953,1739385037162,-500.0,0.00018799,2]
[352877954,1739385037173,-500.0,0.00018799,2]
[352877955,1739385037184,-500.0,0.00018799,2]
[352877956,1739385037195,-137.34217681,0.00018799,2]
[352877957,1739385037210,-362.65782319,0.00018799,2]
[352877958,1739385037222,-500.0,0.00018799,2]
[352877959,1739385037231,-513.34,0.00018799,2]
[352877960,1739385037241,-159.48689662,0.00018799,2]
[352877961,1739385037254,-340.51310338,0.00018799,2]
[352877962,1739385037266,-500.0,0.00018799,2]
[352877963,1739385037276,-500.0,0.00018799,2]
[352877964,1739385037287,-500.0,0.00018799,2]
[352877965,1739385037296,-500.0,0.00018799,2]
[352877966,1739385037306,-500.0,0.00018799,2]
[352877967,1739385037317,-500.0,0.00018799,2]
[352877968,1739385037326,-500.0,0.00018799,2]
[352877969,1739385037337,-500.0,0.00018799,2]
[352877970,1739385037348,-500.0,0.00018799,2]
[352877971,1739385037360,-500.0,0.00018799,2]
[352877972,1739385037370,-500.0,0.00018799,2]
[352877973,1739385037382,-500.0,0.00018799,2]
[352877974,1739385037393,-619.12125048,0.00018799,2]
[352877975,1739385037404,-500.0,0.00018799,2]
[352877976,1739385037415,-500.0,0.00018799,2]
[352877977,1739385037425,-644.07,0.00018799,2]
[352877978,1739385037435,-500.0,0.00018799,2]
[352877979,1739385037446,-500.0,0.00018799,2]
[352877980,1739385037457,-500.0,0.00018799,2]
[352877981,1739385037467,-500.0,0.00018799,2]
[352877982,1739385037478,-500.0,0.00018799,2]
[352877983,1739385037493,-500.75305869,0.00018799,2]
[352877984,1739385037503,-500.0,0.00018799,2]
[352877985,1739385037513,-500.0,0.00018799,2]
[352877986,1739385037524,-500.0,0.00018799,2]
[352877987,1739385037533,-500.0,0.00018799,2]
[352877988,1739385037543,-500.0,0.00018799,2]
[352877989,1739385037553,-500.0,0.00018799,2]
[352877990,1739385037563,-500.0,0.00018799,2]
[352877991,1739385037572,-500.0,0.00018799,2]
[352877992,1739385037583,-500.0,0.00018799,2]
[352877994,1739385037594,-518.05,0.00018799,2]
[352877996,1739385037604,-500.0,0.00018799,2]
[352877997,1739385037615,-500.0,0.00018799,2]
[352877998,1739385037625,-500.0,0.00018799,2]
[352877999,1739385037636,-500.0,0.00018799,2]
[352878000,1739385037645,-500.0,0.00018799,2]
[352878001,1739385037655,-500.0,0.00018799,2]
[352878002,1739385037665,-335.78620468,0.00018799,2]
[352878004,1739385037675,-500.0,0.00018799,2]
[352878005,1739385037685,-500.0,0.00018799,2]
[352878006,1739385037695,-501.78357424,0.00018799,2]
[352878007,1739385037706,-500.0,0.00018799,2]
[352878008,1739385037716,-500.0,0.00018799,2]
[352878009,1739385037727,-402.73590631,0.00018799,2]
[352878010,1739385037737,-500.0,0.00018799,2]
[352878011,1739385037750,-500.0,0.00018799,2]
[352878012,1739385037760,-500.0,0.00018799,2]
[352878013,1739385037770,-565.64,0.00018799,2]
[352878014,1739385037780,-500.0,0.00018799,2]
[352878015,1739385037790,-500.0,0.00018799,2]
[352878016,1739385037799,-357.77800009,0.00018799,2]
[352878017,1739385037809,-500.0,0.00018799,2]
[352878018,1739385037818,-500.0,0.00018799,2]
[352878019,1739385037828,-639.37,0.00018799,2]
[352878020,1739385037839,-501.93335039,0.00018799,2]
[352878021,1739385037849,-500.0,0.00018799,2]
[352878022,1739385037860,-500.0,0.00018799,2]
[352878023,1739385037870,-500.0,0.00018799,2]
[352878024,1739385037880,-500.0,0.00018799,2]
[352878025,1739385037890,-648.6,0.00018799,2]
[352878026,1739385037905,-500.0,0.00018799,2]
[352878027,1739385037915,-500.0,0.00018799,2]
[352878028,1739385037924,-602.44,0.00018799,2]
[352878029,1739385037933,-500.0,0.00018799,2]
[352878030,1739385037944,-500.0,0.00018799,2]
[352878031,1739385037954,-519.96,0.00018799,2]
[352878032,1739385037964,-583.27365815,0.00018799,2]
[352878033,1739385037974,-572.00391826,0.00018799,2]
[352878034,1739385037983,-621.19,0.00018799,2]
[352878035,1739385037993,-500.0,0.00018799,2]
[352878036,1739385038004,-500.0,0.00018799,2]
[352878037,1739385038013,-500.0,0.00018799,2]
[352878038,1739385038024,-500.0,0.00018799,2]
[352878039,1739385038033,-500.0,0.00018799,2]
[352878040,1739385038045,-500.0,0.00018799,2]
[352878041,1739385038059,-500.0,0.00018799,2]
[352878042,1739385038068,-500.0,0.00018799,2]
[352878043,1739385038078,-158.14684259,0.00018799,2]
[352878044,1739385038088,-500.0,0.00018799,2]
[352878045,1739385038098,-500.0,0.00018799,2]
[352878046,1739385038107,-500.0,0.00018799,2]
[352878047,1739385038118,-540.34,0.00018799,2]
[352878048,1739385038127,-500.0,0.00018799,2]
[352878049,1739385038137,-500.0,0.00018799,2]
[352878050,1739385038147,-500.0,0.00018799,2]
[352878052,1739385038157,-500.0,0.00018799,2]
[352878054,1739385038167,-500.0,0.00018799,2]
[352878056,1739385038176,-500.0,0.00018799,2]
[352878058,1739385038186,-526.47,0.00018799,2]
[352878060,1739385038195,-500.0,0.00018799,2]
[352878062,1739385038206,-500.0,0.00018799,2]
[352878064,1739385038215,-500.0,0.00018799,2]
[352878066,1739385038225,-500.0,0.00018799,2]
[352878068,1739385038234,-500.0,0.00018799,2]
[352878070,1739385038244,-500.0,0.00018799,2]
[352878072,1739385038254,-500.0,0.00018799,2]
[352878074,1739385038264,-500.0,0.00018799,2]
[352878076,1739385038274,-500.0,0.00018799,2]
[352878078,1739385038284,-500.0,0.00018799,2]
[352878080,1739385038295,-500.0,0.00018799,2]
[352878082,1739385038304,-529.41,0.00018799,2]
[352878084,1739385038314,-500.0,0.00018799,2]
[352878086,1739385038324,-500.0,0.00018799,2]
[352878088,1739385038333,-500.0,0.00018799,2]
[352878090,1739385038342,-500.0,0.00018799,2]
[352878092,1739385038351,-500.0,0.00018799,2]
[352878094,1739385038363,-500.0,0.00018799,2]
[352878096,1739385038372,-500.0,0.00018799,2]
[352878098,1739385038382,-500.0,0.00018799,2]
[352878100,1739385038392,-500.0,0.00018799,2]
[352878102,1739385038401,-500.0,0.00018799,2]
[352878104,1739385038411,-500.0,0.00018799,2]
[352878107,1739385038422,-500.0,0.00018799,2]
[352878109,1739385038431,-500.0,0.00018799,2]
[352878111,1739385038441,-500.0,0.00018799,2]
[352878113,1739385038451,-500.0,0.00018799,2]
[352878115,1739385038460,-500.0,0.00018799,2]
[352878117,1739385038471,-500.0,0.00018799,2]
[352878119,1739385038480,-500.0,0.00018799,2]
[352878121,1739385038489,-500.0,0.00018799,2]
[352878123,1739385038499,-500.0,0.00018799,2]
[352878125,1739385038508,-500.0,0.00018799,2]
[352878127,1739385038517,-500.0,0.00018799,2]
[352878129,1739385038526,-500.0,0.00018799,2]
[352878131,1739385038536,-500.0,0.00018799,2]
[352878133,1739385038545,-360.56,0.00018799,2]
[352878135,1739385038555,-500.0,0.00018799,2]
[352878137,1739385038564,-519.07873581,0.00018799,2]
[352878139,1739385038574,-193.7,0.00018799,2]
[352878141,1739385038583,-500.0,0.00018799,2]
[352878143,1739385038593,-500.0,0.00018799,2]
[352878145,1739385038603,-14.2987245,0.00018799,2]
[352878147,1739385038619,-485.7012755,0.00018799,2]
[352878149,1739385038628,-500.0,0.00018799,2]
[352878151,1739385038637,-500.0,0.00018799,2]
[352878153,1739385038647,-1151.84187513,0.00018799,2]
[352878155,1739385038656,-500.0,0.00018799,2]
[352878157,1739385038666,-306.65921412,0.00018799,2]
[352878159,1739385038675,-500.0,0.00018799,2]
[352878161,1739385038685,-530.11,0.00018799,2]
[352878163,1739385038695,-500.93221333,0.00018799,2]
[352878165,1739385038704,-500.0,0.00018799,2]
[352878167,1739385038714,-500.0,0.00018799,2]
[352878170,1739385038723,-500.0,0.00018799,2]
[352878172,1739385038733,-500.0,0.00018799,2]
[352878174,1739385038742,-500.0,0.00018799,2]
[352878176,1739385038752,-502.16219687,0.00018799,2]
[352878178,1739385038761,-500.0,0.00018799,2]
[352878180,1739385038771,-1000.0,0.000188,2]
[352878182,1739385038780,-11413.90185237,0.000188,2]
[352878184,1739385038792,-41471.58269215,0.000188,2]
[352878186,1739385038803,-3016.08556991,0.000188,2]
[352878189,1739385038825,-500.0,0.00017436,2]
[352878191,1739385038834,-1363.88495208,0.000188,2]
[352878194,1739385038846,-2286.05256032,0.000188,2]
[352878196,1739385038858,-272.049998,0.000188,2]
[352878199,1739385038878,-1672.000009,0.000188,2]
[352878201,1739385038889,-2390.37141977,0.000188,2]
[352878215,1739385039014,-500.0,0.00017573,2]
[352878217,1739385039026,-501.79003758,0.00018799,2]
[352878219,1739385039036,-1026.7139192,0.000188,2]
[352878222,1739385039050,-2019.35036816,0.000188,2]
[352878225,1739385039072,-493.16,0.00016116,2]
[352878227,1739385039083,-244.87317346,0.000188,2]
[352878229,1739385039096,-18888.78593275,0.000188,2]
[352878232,1739385039112,-3252.50779899,0.000188,2]
[352878234,1739385039126,-1484.39999997,0.000188,2]
[352878237,1739385039140,-49335.47053847,0.000188,2]
[352878239,1739385039153,-1503.88525785,0.000188,2]
[352878241,1739385039167,-3519.39994626,0.000188,2]
[352878309,1739385039821,-585.32634896,0.000188,2]
[352878315,1739385039874,-2161.11885675,0.000188,2]
[352878322,1739385039929,-253.3674,0.000188,2]
[352878324,1739385039943,-2254.030016,0.000188,2]
[352878327,1739385039957,-1573.250001,0.000188,2]
[352878331,1739385039985,-5438.64278214,0.000188,2]
[352878338,1739385040040,-312.18294874,0.000188,2]
[352878350,1739385040151,-232115.30018554,0.000188,2]
[352878352,1739385040161,-1400.0,0.000188,6]
[352878354,1739385040172,-2166.1594803,0.00018808,2]
[352878356,1739385040183,-793.13,0.00018846,2]
[352878358,1739385040195,-997.24070156,0.0001888,2]
[352878359,1739385040206,-154536.75743836,0.0001888,2]
[352878360,1739385040218,-2096.0,0.00018887,2]
[352878361,1739385040229,-260.67262,0.00018888,7]
[352878362,1739385040241,-500.0,0.00018892,2]
[352878363,1739385040252,-163.55050003,0.000189,2]
[352878364,1739385040263,-2830.92,0.000189,31]
[352878365,1739385040275,-2830.92,0.000189,31]
[352878366,1739385040286,-2830.92,0.000189,31]
[352878368,1739385040297,-2830.92,0.000189,31]
[352878370,1739385040308,-2830.92,0.000189,31]
[352878372,1739385040320,-2830.92,0.000189,31]
[352878374,1739385040331,-2830.92,0.000189,31]
[352878376,1739385040343,-2830.92,0.000189,31]
[352878379,1739385040354,-2830.92,0.000189,31]
[352878381,1739385040366,-2830.92,0.000189,31]
[352878383,1739385040378,-2830.92,0.000189,31]
[352878385,1739385040389,-2830.92,0.000189,31]
[352878388,1739385040402,-2830.92,0.000189,31]
[352878390,1739385040414,-2830.92,0.000189,31]
[352878392,1739385040424,-2830.92,0.000189,31]
[352878394,1739385040436,-2830.92,0.000189,31]
[352878396,1739385040448,-1800.0,0.000189,6]
[352878399,1739385040459,-328.9964512,0.00018912,2]
[352878401,1739385040471,-493.2527066,0.00018912,2]
[352878403,1739385040483,-500.0,0.00018928,2]
[352878405,1739385040493,-500.0,0.00018928,2]
[352878407,1739385040505,-500.0,0.00018928,2]
[352878410,1739385040516,-500.0,0.00018928,2]
[352878412,1739385040527,-681.46,0.00018928,2]
[352878414,1739385040539,-339.47123387,0.00018928,2]
[352878416,1739385040550,-500.0,0.00018928,2]
[352878418,1739385040562,-500.0,0.00018928,2]
[352878421,1739385040574,-500.0,0.00018928,2]
[352878423,1739385040585,-500.0,0.00018928,2]
[352878425,1739385040595,-500.0,0.00018928,2]
[352878427,1739385040607,-876.43,0.00018932,2]
[352878430,1739385040620,-534.47615633,0.00018935,2]
[352878432,1739385040631,-610.3,0.00018935,2]
[352878434,1739385040642,-500.0,0.00018935,2]
[352878436,1739385040653,-500.0,0.00018935,2]
[352878438,1739385040663,-500.0,0.00018935,2]
[352878441,1739385040676,-500.0,0.00018935,2]
[352878443,1739385040688,-500.0,0.00018935,2]
[352878445,1739385040698,-224.44,0.00018936,2]
[352878447,1739385040709,-421.04,0.00018936,2]
[352878450,1739385040721,-380.92,0.00018936,2]
[352878452,1739385040731,-189.52,0.00018936,2]
[352878454,1739385040743,-500.0,0.00018936,2]
[352878456,1739385040755,-292.19,0.00018936,2]
[352878458,1739385040766,-504.03,0.00018936,2]
[352878460,1739385040777,-399.13,0.00018936,2]
[352878462,1739385040787,-498.31,0.00018936,2]
[352878465,1739385040798,-402.94,0.00018936,2]
[352878467,1739385040808,-310.2,0.00018936,2]
[352878469,1739385040819,-479.28,0.00018936,2]
[352878471,1739385040830,-500.0,0.00018936,2]
[352878473,1739385040840,-307.05,0.00018936,2]
[352878475,1739385040851,-407.27,0.00018936,2]
[352878477,1739385040866,-500.0,0.00018936,2]
[352878480,1739385040879,-500.0,0.00018936,2]
[352878482,1739385040891,-460.33,0.00018936,2]
[352878484,1739385040903,-418.26,0.00018936,2]
[352878486,1739385040914,-210.98,0.00018936,2]
[352878488,1739385040924,-349.19697522,0.00018936,2]
[352878490,1739385040934,-500.0,0.00018936,2]
[352878493,1739385040945,-384.89,0.00018936,2]
[352878495,1739385040955,-252.9,0.00018936,2]
[352878497,1739385040967,-322.77,0.00018936,2]
[352878499,1739385040978,-500.0,0.00018936,2]
[352878501,1739385040988,-500.0,0.00018936,2]
[352878503,1739385040999,-300.0,0.00018959,2]
[352878505,1739385041010,-150.0,0.00018959,2]
[352878508,1739385041021,-216.8,0.00018959,2]
[352878510,1739385041033,-151.2,0.00018959,2]
[352878512,1739385041044,-1478.11,0.00018959,2]
[352878514,1739385041055,-672.35,0.00018959,2]
[352878516,1739385041069,-977.08059835,0.00018973,2]
[352878518,1739385041079,-125277.75982285,0.00018983,5]
[352878520,1739385041091,-11718.67419782,0.0001899,2]
[352878522,1739385041101,-500.0,0.00018992,2]
[352878525,1739385041113,-758.0,0.00019,2]
[352878527,1739385041123,-5000.12345678,0.00019,4]
[352878529,1739385041134,-1000.0,0.00019,3]
[352878531,1739385041145,-1001.0,0.00019,3]
[352878533,1739385041158,-7598.85909419,0.00019,2]
[352878535,1739385041168,-961.61,0.00019,2]
[352878537,1739385041178,-3713.97735914,0.00019,2]
[352878540,1739385041189,-163.39807607,0.00019,15]
[352878542,1739385041200,-10341.66818188,0.00019,2]
[352878544,1739385041210,-931.2408235,0.00019,20]
[352878546,1739385041220,-180152.81190606,0.00019,3]
[352878548,1739385041231,-1683.60539705,0.00019,3]
[352878550,1739385041242,-59301.06013007,0.00019,2]
[352878552,1739385041254,-1537.88565381,0.00019,2]
[352878555,1739385041264,-500.122799,0.00019,2]
[352878557,1739385041275,-700.0,0.00019,2]
[352878559,1739385041286,-1177.1,0.00019,2]
[352878561,1739385041296,-1897.31,0.00019001,2]
[352878563,1739385041307,-3012.14,0.00019014,2]
[352878565,1739385041318,-1000.0,0.0001902,2]
[352878567,1739385041328,-5000.0,0.00019035,2]
[352878570,1739385041338,-962.74,0.00019055,7]
[352878572,1739385041349,-962.74,0.00019055,7]
[352878574,1739385041359,-464.37,0.00019058,2]
[352878576,1739385041372,-5000.0,0.00019061,2]
[352878578,1739385041383,-500.0,0.00019065,2]
[352878580,1739385041394,-421.2,0.00019065,2]
[352878582,1739385041404,-500.0,0.00019065,2]
[352878584,1739385041415,-500.0,0.00019065,2]
[352878587,1739385041426,-681.46,0.00019065,2]
[352878589,1739385041437,-292.95433012,0.00019065,2]
[352878591,1739385041448,-246.93959357,0.00019065,2]
[352878593,1739385041459,-515.23156571,0.00019065,2]
[352878595,1739385041470,-500.0,0.00019065,2]
[352878598,1739385041480,-500.0,0.00019065,2]
[352878600,1739385041491,-500.0,0.00019072,2]
[352878602,1739385041501,-500.0,0.00019072,2]
[352878604,1739385041511,-500.0,0.00019072,2]
[352878606,1739385041522,-500.0,0.00019072,2]
[352878608,1739385041533,-500.0,0.00019072,2]
[352878610,1739385041543,-296.19,0.00019073,2]
[352878613,1739385041555,-189.64,0.00019073,2]
[352878615,1739385041566,-173.18,0.00019073,2]
[352878617,1739385041576,-534.45,0.00019073,2]
[352878619,1739385041587,-500.0,0.00019073,2]
[352878621,1739385041599,-500.0,0.00019073,2]
[352878624,1739385041610,-328.9964512,0.00019077,2]
[352878626,1739385041624,-493.2527066,0.00019077,2]
[352878628,1739385041635,-2096.0,0.00019078,2]
[352878630,1739385041645,-749.83009542,0.00019078,2]
[352878632,1739385041655,-260.67262,0.00019088,7]
[352878634,1739385041666,-5000.0,0.0001909,2]
[352878636,1739385041676,-500.0,0.00019092,2]
[352878638,1739385041687,-5000.0,0.00019092,2]
[352878640,1739385041697,-600.0,0.00019093,2]
[352878642,1739385041708,-500.0,0.00019093,2]
[352878645,1739385041718,-2641.15,0.000191,2]
[352878647,1739385041728,-1991.5761,0.000191,2]
[352878649,1739385041739,-500.0,0.000191,2]
[352878651,1739385041750,-1000.0,0.000191,2]
[352878653,1739385041761,-1000.0,0.000191,2]
[352878655,1739385041772,-1000.0,0.000191,2]
[352878657,1739385041782,-1000.0,0.000191,2]
[352878659,1739385041793,-1000.0,0.000191,2]
[352878662,1739385041803,-1000.0,0.000191,2]